Cogmind - Beta 10.2 @@@ ROGUE MODE // 2022.02.22 @ 10:44:34 Player: bschuck Result: Destroyed by Y-45 Defender with Beam Rifle Performance ------------- Evolutions (1) 500 Regions Visited (2) 400 Robots Destroyed (2) 10 Value Destroyed (78) 78 Prototype IDs (2) 40 Alien Tech Used (0) 0 Bonus (200) 200 TOTAL SCORE: 1228 Bonus ------- Pacifist 200 Cogmind --------- Core Integrity 0/400 Matter 231/300 Energy 98/100 System Corruption 0% Temperature Cool (10) Movement Treading (180) Ox1 Location -9/Materials Parts ------- > --- POWER (1) -------- (None) > --- PROPULSION (2) --- Light Treads > --- UTILITY (3) ------ Medium Storage Unit Medium Storage Unit Hardened Light Armor Plating > --- WEAPON (3) ------- (None) > --- INVENTORY (12) --- Field Recycling Unit (0) Peak State ------------ > --- POWER ------------ Ion Engine > --- PROPULSION ------- Light Treads Light Treads > --- UTILITY ---------- Medium Storage Unit Medium Storage Unit > --- WEAPON ----------- EMP Blaster EMP Blaster Plasma Cutter > --- INVENTORY -------- Field Recycling Unit [Rating: 11] Favorites ----------- Power Ion Engine Engine Ion Engine Propulsion Aluminum Leg Treads Light Treads Leg Aluminum Leg Utility Medium Storage Unit Storage Medium Storage Unit Protection Light Armor Plating Weapon Assault Rifle Energy Gun Small Laser Ballistic Gun Assault Rifle Launcher EMP Blaster Special Weapon Mining Laser Build | -11 -10 -9 ------- Run | Scr Mat Mat Slots Evolved 2 | . . 2 Power . | . . . Propulsion . | . . . Utility 1 | . . 1 Weapon 1 | . . 1 Parts Attached 18 | 6 3 9 Power 2 | 1 . 1 Engine 2 | 1 . 1 Core . | . . . Reactor . | . . . Propulsion 4 | 2 . 2 Treads 2 | . . 2 Leg 2 | 2 . . Wheel . | . . . Hover . | . . . Flight . | . . . Utility 5 | 1 2 2 Device . | . . . Storage 3 | 1 1 1 Processor . | . . . Hackware . | . . . Protection 2 | . 1 1 Artifact . | . . . Weapon 7 | 2 1 4 Energy Gun 2 | 1 1 . Energy Cannon . | . . . Ballistic Gun 1 | 1 . . Ballistic Cannon . | . . . Launcher 2 | . . 2 Special Weapon 2 | . . 2 Impact Weapon . | . . . Slashing Weapon . | . . . Piercing Weapon . | . . . Special Melee Weapon . | . . . Unidentified Prototypes . | . . . Parts Lost 12 | . . 12 Power 2 | . . 2 Propulsion 3 | . . 3 Utility 1 | . . 1 Weapon 6 | . . 6 Highest Loss Streak 7 | . . 7 Average Slot Usage (%) 66 | . 90 54 Engine 7 | . 14 4 Treads 8 | . . 13 Leg 13 | . 28 5 Storage 17 | . 14 18 Protection 3 | . 5 3 Energy Gun 6 | . 14 2 Ballistic Gun 6 | . 14 2 Special Weapon 1 | . . 2 Naked Turns . | . . . Heaviest Build 29 | 12 20 29 Greatest Support 40 | 20 20 40 Greatest Overweight (x) 2 | . . 2 Average Overweight (x) . | . . . Largest Inventory Capacity 12 | 6 10 12 Average Capacity 9 | 5 7 10 Most Carried 8 | 6 8 7 Average Carried 3 | 3 6 2 Final Capacity 12 | 6 8 12 Final Carried 8 | 6 8 1 Class Distribution -------------------- 87% | Mutant 12% | Tank Dominant Class ---------------- Mutant | -10/Materials Mutant | -9/Materials Resources | -11 -10 -9 ----------- Run | Scr Mat Mat Matter Collected 287 | 173 . 114 Remotely . | . . . Salvage Created 91 | . . 91 Parts 1 | . . 1 Haulers Intercepted . | . . . Recyclers Shooed . | . . . Parts Field Recycled . | . . . Retrieved Matter . | . . . Parts Self-Destructed . | . . . Prevented . | . . . Kills | -11 -10 -9 ------- Run | Scr Mat Mat Combat Hostiles Destroyed 2 | . . 2 Cannons 1 | . . 1 AOE 1 | . . 1 Classes Destroyed 1 | . . 1 Grunt 2 | . . 2 Best Kill Streak 2 | . . 2 Combat Bots Only 2 | . . 2 Max Kills in Single Turn 1 | . . 1 Gunslinging . | . . . Exploded 1 | . . 1 Melee . | . . . Uniques/NPCs Destroyed . | . . . Combat | -11 -10 -9 -------- Run | Scr Mat Mat Damage Taken 1707 | . . 1707 Core 410 | . . 410 Absorbed by Shields . | . . . Core Remaining (%) 100 | 100 100 . Volleys Fired 13 | . . 13 Largest 3 | . . 3 Hottest 170 | . . 170 Shots Fired 22 | . . 22 Gun 13 | . . 13 Cannon . | . . . Launcher 3 | . . 3 Special 6 | . . 6 Kinetic 8 | . . 8 Thermal 11 | . . 11 Explosive . | . . . Electromagnetic 3 | . . 3 Robot Hit Streak 4 | . . 4 Robot Miss Streak 4 | . . 4 Penetration Max . | . . . Secondary Targets . | . . . Shots Hit Robots 11 | . . 11 Core Hits 5 | . . 5 Critical Hits . | . . . Critical Kills . | . . . Critical Parts Destroyed . | . . . Melee Attacks . | . . . Impact . | . . . Slashing . | . . . Piercing . | . . . Sneak Attacks . | . . . Combat Hostiles . | . . . Follow-up Attacks . | . . . Damage Inflicted 288 | . . 288 Guns 99 | . . 99 Cannons . | . . . Explosions 143 | . . 143 Melee . | . . . Ramming . | . . . Kinetic 60 | . . 60 Thermal 85 | . . 85 Explosive . | . . . Electromagnetic 143 | . . 143 Impact . | . . . Slashing . | . . . Piercing . | . . . Highest Corruption . | . . . Average Corruption . | . . . Corruption Purged . | . . . Overload Shots . | . . . Overflow Damage 12 | . . 12 Projectiles . | . . . Explosions 12 | . . 12 Melee . | . . . Knockbacks . | . . . Impact . | . . . Kinetic . | . . . Secondary . | . . . Self-Inflicted Damage 27 | . . 27 Shots 2 | . . 2 Rammed . | . . . Targets Rammed . | . . . Kicked . | . . . Crushed . | . . . Highest Temperature 279 | . . 279 Average Temperature 124 | . . 124 Received Heat Transfer 756 | . . 756 Siege Activations . | . . . Robots Corrupted . | . . . Combat Hostiles . | . . . Parts Fried . | . . . Impact Corruptions . | . . . Robots Melted . | . . . Combat Hostiles . | . . . Parts Melted . | . . . Heat Transferred 235 | . . 235 Parts Sabotaged . | . . . Parts Stolen . | . . . Parts Stripped . | . . . Power Chain Reactions . | . . . Missiles Intercepted . | . . . Alert | -11 -10 -9 ------- Run | Scr Mat Mat Peak Influence 155 | . 14 155 Initial 5 | . . 5 Average 34 | . 11 57 Maximum Alert Level . | . . . Low Security (%) 100 | 100 100 100 Level 1 . | . . . Level 2 . | . . . Level 3 . | . . . Level 4 . | . . . Level 5 . | . . . High Security . | . . . Max Security . | . . . Squads Dispatched . | . . . Investigation . | . . . Extermination . | . . . Reinforcement . | . . . Assault . | . . . Garrison . | . . . Intercept . | . . . Construction Impeded . | . . . Haulers Reinforced . | . . . Stealth | -11 -10 -9 --------- Run | Scr Mat Mat Distress Signals . | . . . Communications Jammed . | . . . Distress Signals . | . . . Times Spotted 14 | . 1 13 Peak Tracking Total 5 | . 1 5 Tactical Retreats 5 | . . 5 Traps | -11 -10 -9 ------- Run | Scr Mat Mat Traps Triggered . | . . . Indirectly . | . . . Trap Hack Attempts . | . . . Triggered . | . . . Disarmed . | . . . Reprogrammed . | . . . Reused . | . . . Traps Extracted . | . . . Installed . | . . . Triggered . | . . . Machines | -11 -10 -9 ---------- Run | Scr Mat Mat Machines Disabled 1 | . . 1 Max in Single Turn 1 | . . 1 Machines Sabotaged . | . . . Garrisons Compromised . | . . . Overloaded Fab Kills . | . . . Fab Network Shutdowns . | . . . Hacking | -11 -10 -9 --------- Run | Scr Mat Mat Machines Accessed 1 | . 1 . Terminals 1 | . 1 . Fabricators . | . . . Repair Stations . | . . . Recycling Units . | . . . Scanalyzers . | . . . Garrison Access . | . . . Total Hacks 4 | . 4 . Successful 3 | . 3 . Failed 1 | . 1 . Catastrophic . | . . . Database Lockouts . | . . . Manual . | . . . Terminals 4 | . 4 . Fabricators . | . . . Repair Stations . | . . . Recycling Units . | . . . Scanalyzers . | . . . Garrison Access . | . . . Terminal Hacks 3 | . 3 . Record 1 | . 1 . Prototype ID Bank 1 | . 1 . Registered Prototypes 1 | . 1 . Fabricator Hacks . | . . . Repair Station Hacks . | . . . Recycling Unit Hacks . | . . . Scanalyzer . | . . . Garrison Access Hacks . | . . . Unauthorized Hacks . | . . . Terminals . | . . . Fabricators . | . . . Repair Stations . | . . . Recycling Units . | . . . Scanalyzers . | . . . Garrison Access . | . . . Data Cores Recovered . | . . . Used . | . . . Hacking Detections 1 | . 1 . Full Trace Events 1 | . 1 . Feedback Events . | . . . Feedback Blocked . | . . . Robot Schematics Acquired . | . . . Robots Built . | . . . Matter . | . . . Time . | . . . Total Robot Build Rating . | . . . Part Schematics Acquired . | . . . Parts Built . | . . . Matter . | . . . Time . | . . . Total Part Build Rating . | . . . Parts Repaired . | . . . Time . | . . . Parts Recycled . | . . . Recycled Matter . | . . . Retrieved Matter . | . . . Retrieved Components . | . . . Parts Scanalyzed . | . . . Part Schematics Acquired . | . . . Parts Damaged . | . . . Bothacking | -11 -10 -9 ------------ Run | Scr Mat Mat Used RIF Installer . | . . . Robots Hacked . | . . . Non-combat . | . . . Combat . | . . . Robot Hacks Applied . | . . . Relay Couplers Released . | . . . Robots Rewired . | . . . Allies Hacked . | . . . Hacks Repelled . | . . . Allies | -11 -10 -9 -------- Run | Scr Mat Mat Total Allies . | . . . Largest Group . | . . . Highest-Rated Group . | . . . Highest-Rated Ally . | . . . Total Orders . | . . . Ally Attacks . | . . . Total Damage . | . . . Kills . | . . . Allies Corrupted . | . . . Allies Melted . | . . . Intel | -11 -10 -9 ------- Run | Scr Mat Mat Robot Analysis Total . | . . . Derelict Logs Recovered . | . . . Drone Launches . | . . . Drone Recoveries . | . . . Exploration | -11 -10 -9 ------------- Run | Scr Mat Mat Turns Passed 451 | 70 134 247 Spaces Moved 276 | 50 102 124 Core 16 | 10 . 6 Treads 95 | . . 95 Legs 165 | 40 102 23 Wheels . | . . . Hover . | . . . Flight . | . . . Fastest Speed 50 | 50 120 120 Average Speed 133 | 106 120 156 Slowest Speed 180 | 120 120 180 Overloaded Moves . | . . . Propulsion Burnouts . | . . . Robots Hopped . | . . . Cave-ins Triggered . | . . . Exploration Rate (%) 10 | 3 20 8 Regions Visited 2 Branch Regions . Pre-discovered Areas . | . . . Known Exits Taken . | . . . Unknown Exits Taken 2 | 1 1 . Scrap Searched . | . . . Spaces Dug . | . . . Terrain Destroyed 1 | . . 1 Melee . | . . . Projectile 1 | . . 1 AOE . | . . . Terrain Rammed . | . . . Walls Destroyed . | . . . Machines Disabled . | . . . Actions | -11 -10 -9 --------- Run | Scr Mat Mat Total 330 | 67 115 148 Wait . | . . . Move 274 | 49 101 124 Hop . | . . . Pick Up 21 | 12 7 2 Fast Attach . | . . . Attach 18 | 6 3 9 Detach . | . . . Swap . | . . . Drop 4 | . 4 . Fire 13 | . . 13 Melee . | . . . Ram . | . . . Kick . | . . . Crush . | . . . Escape Stasis . | . . . Rewire . | . . . Trap . | . . . Miscellaneous . | . . . Route ------- -11/Scrapyard -10/Materials (discovered 2 exits: *Mat / [*Min]) -9/Materials History --------- Turn | Location | Event 8 | -11/Scrapyard | Discovered new exit (range 15) 71 | -11/Scrapyard | Entered Materials 96 | -10/Materials | Discovered new exit (range 15) 185 | -10/Materials | Discovered new exit (range 16) 205 | -10/Materials | Entered another Materials area 205 | -9/Materials | Evolved 2 slots: Utility x1, Weapon x1 297 | -9/Materials | Core integrity fell below 50% 298 | -9/Materials | Lost 7 parts (1p2n1u3w) 361 | -9/Materials | Lost 4 parts (1p3w) 424 | -9/Materials | Core integrity fell below 20% 452 | -9/Materials | Destroyed by Y-45 Defender with Beam Rifle Last Messages --------------- Terminal disabled. EMP Blaster destroyed. G-34 Mercenary destroyed. Acquired 49 matter. Plasma Cutter destroyed. EMP Blaster destroyed. Destroyed EMP Blaster. Y-45 Defender misfires. Ion Engine destroyed. G-47 Trooper misfires. Lgt. Treads destroyed. G-47 Trooper misfires. U-05 Engineer lays Concrete. Acquired 34 matter. U-05 Engineer lays Concrete. U-05 Engineer repairs door. K-01 Serf collects debris. G-47 Trooper IFF system glitched. Acquired Hrd. Light Armor Plating. G-47 Trooper misfires. Map ----- +----------------------------------------------------+ | ????????????????????????????????????????????????? | | ????????????????????????????????????????????????? | | ????????????????????????????????????????????????? | | ????????????????????????????????????????????????? | | ????????????????????????????????????????????????? | | ????????????????????????????????????????????????? | | ????????????????????????????????????????????????? | | ????????????????????????????????????????????????? | | ????????????????????????????????????????????????? | | ????????????????????????????????????????????????? | | ????????????????????????????????????????????????? | | ????????????????????????????????????????????????? | | ????????????????????????????????????????????????? | | ????????????????????????????????????????????????? | | ???????? ???????????????????????????????????????? | | ???????? ??????????????????????????????????????? | | ???????? ??????????########????????????????????? | | ???????? ??????????# #????????????????????? | | ????????# ??????????# #######??????????????? | | ????????# ??????????#""" # #??????????????? | | ????????# ??????????#""" # #??????????????? | | ????????# ??????????#""" # #??????????????? | | ????????# #?????????# # #??????????????? | | ????????# ##############g#Y# #??????????????? | | ????????# k # #??????????????? | | ????????+ @ ; #??????????????? | | ????????# # #??????????????? | | ????????# ############+### #??????????????? | | ????????# # ### ## #??????????????? | | ????????# # / + ## #??????????????? | | ????????# # ### ## #??????????????? | | ????????# # #?# ########??????????????? | | ????????# # #?# #?????????????????????? | | ????????# #### ###### #?????????????????????? | | ????????# # #?????????????????????? | | ????????# #####?????????????????????? | | ????????# #?????????????????????????? | | ??????####/######## #?????????????????????????? | | ??????# #??# #?????????????????????????? | | ??????# """"" #??#####?????????????????????????? | | ??????# """"" #????????????????????????????????? | | ??????# """"" #????????????????????????????????? | | ??????# """"" #????????????????????????????????? | | ??????# """"" #????????????????????????????????? | | ??????# """"" #????????????????????????????????? | | ??????# """"" #????????????????????????????????? | | ??????#! #????????????????????????????????? | | ??????##########????????????????????????????????? | | | | | +----------------------------------------------------+ Best States ------------- Heat Dissipation 28 Energy Generation 10 Energy Capacity 250 Matter Stores 241 Matter Capacity 300 Sight Range 16 Terrain Scan Density 10 Armor Coverage 150 Evasion (%) 40 Recoil Reduction 2 Item Schematics ----------------- None Robot Schematics ------------------ None Fabricated ------------ Nothing Alien Tech Used ----------------- None Achievements -------------- None Challenges ------------ None Game ------ Seed CatalystMatterFalx Manual? 0 Play Time 00:10:49 Cumulative 16.0 hours Start 2022.02.22 @ 10:36:43 End 2022.02.22 @ 10:44:34 Sessions 1 Manual Loads 0 Difficulty Rogue Special Mode None Game No. 16 Rogue 5 Adventurer 0 Explorer 11 Win Type - Total 0 Types 0/0/0/0/0/0/0/0/0 Lore% 6 Gallery% 27 Achievement% 19 Wizard Run 0 Options --------- ASCII 0 Keyboard 0 Movement Mouse Keybinds 0 Fullscreen 1 Font 24/Smallcaps Map View 76x50 Tactical HUD 0 Map Filters NONE Filters NONE Steam 1 RUN: de55fdcb-7a4f-4ca9-a159-3e0fc76b7d6f